fUSD/lending_fUSD_20240101
["ID","MTS","AMOUNT","RATE_DAILY","PERIOD"]
[309789899,1704126643090,-350.08869156,0.000387,2]
[309789900,1704126643101,-175.64,0.00038716,2]
[309789901,1704126643112,-155.0,0.00038726,5]
[309789902,1704126643124,-179.72804418,0.00038727,4]
[309789903,1704126643135,-176.97,0.00038789,2]
[309789904,1704126643146,-379.0,0.00038795,2]
[309789905,1704126643157,-21067.3677,0.00038798,2]
[309789906,1704126643168,-18807.30302858,0.000388,2]
[309789907,1704126643183,-134756.59027142,0.000388,2]
[309789908,1704126643193,-300.0,0.000388,14]
[309789909,1704126643204,-206.89666977,0.000388,11]
[309789910,1704126643214,-245000.0,0.000389,2]
[309789911,1704126643225,-1000.0,0.000389,15]
[309789912,1704126643236,-337.2217,0.000389,2]
[309789913,1704126643246,-100000.0,0.000389,2]
[309789914,1704126643259,-8359.8173,0.000389,2]
[309789915,1704126643270,-600.0,0.000389,14]
[309789916,1704126643281,-7500.0,0.000389,2]
[309789917,1704126643292,-150.58348436,0.0003891,2]
[309789918,1704126643304,-4153.70230785,0.00038927,10]
[309789919,1704126643314,-2284.00657565,0.00038927,7]
[309789920,1704126643325,-1137.86264203,0.00038927,7]
[309789921,1704126643335,-186.17,0.00038987,2]
[309789922,1704126643346,-2824.79454,0.0003899,2]
[309789923,1704126643356,-155.0,0.00038998,4]
[309789924,1704126643573,-747.1063136,0.00038998,4]
[309789925,1704126643583,-278.12972048,0.00038998,4]
[309789926,1704126643592,-200.27461544,0.00038998,2]
[309789927,1704126643602,-687.87667714,0.00038998,2]
[309789928,1704126643612,-892.38450812,0.00038998,2]
[309789929,1704126643628,-685.29635833,0.00038999,4]
[309789930,1704126643637,-12220.61999915,0.00038999,2]
[309789931,1704126643648,-17435.12393203,0.00038999,2]
[309789932,1704126643662,-10280.10609572,0.00038999,2]
[309789933,1704126643692,-740.52495021,0.00038999,2]
[309789934,1704126643705,-2258.36812728,0.00038999,2]
[309789935,1704126643722,-868.37905523,0.00038999,2]
[309789936,1704126643735,-878.55182591,0.00038999,2]
[309789937,1704126643746,-475.33246739,0.00038999,2]
[309789938,1704126643758,-844.61316534,0.00038999,2]
[309789939,1704126643769,-394.96999999,0.00038999,2]
[309789940,1704126643780,-712.26559456,0.00038999,2]
[309789941,1704126643791,-1704.14634174,0.00038999,2]
[309789942,1704126645394,-292.20168364,0.000335,4]
[309789943,1704126645404,-1710.89923293,0.000335,5]
[309789944,1704126645414,-9204.34751937,0.00038999,2]
[309789945,1704126645423,-20947.99618855,0.00039,2]
[309789946,1704126645558,-728.9582862,0.00039,2]
[309789947,1704126645570,-1204.0431,0.00039,2]
[309789948,1704126645582,-599.27979208,0.00039,2]
[309789949,1704126645594,-1136.9778922,0.00039,2]
[309789950,1704126645605,-16686.2194064,0.00039,2]
[309789951,1704126645618,-6280.72917536,0.00039,2]
[309789952,1704126645630,-27482.05207787,0.00039,2]
[309789953,1704126645639,-1166.68760598,0.00039,4]
[309789954,1704126645649,-1968.06946982,0.00039,2]
[309789955,1704126645659,-200.0,0.00039,2]
[309789956,1704126645669,-151.13147927,0.00039,2]
[309789957,1704126645680,-2000.0,0.00039,2]
[309789958,1704126645689,-200.0,0.00039,2]
[309789959,1704126645700,-287.57,0.00039,2]
[309789960,1704126645709,-5000.0,0.00039009,3]
[309789961,1704126645719,-5000.0,0.00039066,2]
[309789962,1704126645729,-151.93457294,0.00039067,3]
[309789964,1704126645738,-161.231227,0.00039098,5]
[309789966,1704126645747,-153.87,0.00039106,2]
[309789967,1704126645756,-237.02345279,0.00039166,4]
[309789968,1704126645766,-262.72378197,0.00039166,4]
[309789969,1704126645775,-199.69263487,0.00039166,4]
[309789970,1704126645785,-1868.80694272,0.00039166,14]
[309789972,1704126645794,-262.94748596,0.00039166,4]
[309789974,1704126645803,-54005.46335879,0.00039166,4]
[309789976,1704126645813,-8796.83988555,0.00039167,4]
[309789978,1704126645822,-2811.0326026,0.00039167,3]
[309789980,1704126645831,-680.29586594,0.00039167,4]
[309789982,1704126645841,-203.11657173,0.00039168,4]
[309789984,1704126645851,-38764.87124118,0.00039168,2]
[309789985,1704126645861,-506.51110177,0.00039168,4]
[309789986,1704126645871,-1007.55415252,0.00039168,4]
[309789987,1704126645881,-357.18312631,0.00039168,4]
[309789988,1704126645890,-13017.05767502,0.00039168,4]
[309789989,1704126645899,-1177.33889068,0.00039168,4]
[309789990,1704126645909,-173.55,0.00039168,2]
[309789991,1704126645918,-159876.840428,0.00039185,10]
[309789992,1704126645927,-93205.1035793,0.00039185,4]
[309789993,1704126645937,-2938.86984583,0.00039187,4]
[309789994,1704126645946,-159.07,0.00039195,30]
[309789995,1704126645958,-16652.94777659,0.00039196,2]
[309789996,1704126645968,-155.46100996,0.00039196,2]
[309789997,1704126645978,-198.26550667,0.00039196,2]
[309789998,1704126645987,-20219.93587683,0.00039196,2]
[309789999,1704126645997,-161.231227,0.00039198,5]
[309790000,1704126646006,-151.51,0.000392,2]
[309790001,1704126646016,-175.64,0.00039264,2]
[309790002,1704126646025,-161.231227,0.00039298,5]
[309790003,1704126646035,-161.231227,0.00039398,5]
[309790004,1704126646044,-308.44741268,0.0003957,4]
[309790005,1704126646054,-829.81002967,0.0003957,4]
[309790006,1704126646063,-1258.79402721,0.0003957,4]
[309790007,1704126646073,-204.94886117,0.0003957,4]
[309790008,1704126646082,-7746.87441634,0.0003957,4]
[309790009,1704126646092,-346.09911388,0.00039571,30]
[309790010,1704126646101,-759.03526822,0.00039571,4]
[309790011,1704126646111,-1449.07899799,0.00039571,4]
[309790012,1704126646120,-85189.30757136,0.00039572,4]
[309790014,1704126689044,1798.700773,0.00039196,30]
[309790026,1704127504513,3974.0,0.00039198,30]
[309790054,1704127831569,-420.21298558,0.00031021,4]
[309790055,1704127831580,-463.0,0.00031021,2]
[309790056,1704127831589,-206.0,0.00031022,2]
[309790057,1704127831599,-2957.4446,0.000334,2]
[309790058,1704127831609,-835.85249925,0.000335,5]
[309790059,1704127831619,-277.59,0.00033963,2]
[309790060,1704127831628,-1000.0,0.00035599,4]
[309790061,1704127831638,-177.447162,0.000356,2]
[309790062,1704127831648,-1841.44,0.00035779,2]
[309790063,1704127831657,-163.23,0.00035829,15]
[309790064,1704127831667,-250.0,0.0003584,2]
[309790065,1704127831677,-456.0,0.00035887,2]
[309790066,1704127831686,-151.73,0.00035918,2]
[309790067,1704127831695,-150.99,0.00035918,2]
[309790068,1704127831705,-1816.31,0.00035938,2]
[309790069,1704127831715,-23880.0,0.0003607,2]
[309790070,1704127831728,-220.19,0.0003607,23]
[309790071,1704127831737,-338.96,0.00036206,2]
[309790072,1704127831746,-277.59,0.00036227,2]
[309790073,1704127831755,-500.0,0.00036256,3]
[309790074,1704127831766,-499.99,0.00036256,2]
[309790075,1704127831775,-3430.18,0.00036276,2]
[309790076,1704127831785,-11571.99,0.00036276,2]
[309790077,1704127831794,-200.0,0.00036279,2]
[309790078,1704127831803,-430.14,0.00036285,2]
[309790079,1704127831813,-146.62719336,0.00036286,2]
[309790080,1704127831826,-53.37280664,0.00036286,2]
[309790081,1704127831835,-313.04,0.00036309,2]
[309790082,1704127831844,-209.23,0.00036322,2]
[309790083,1704127831853,-200.0,0.00036393,2]
[309790084,1704127831863,-222.03,0.00036393,2]
[309790085,1704127831873,-165.26,0.00036471,2]
[309790086,1704127831882,-14561.5408007,0.0003674,2]
[309790087,1704127831894,-1996.8791993,0.0003674,2]
[309790088,1704127831907,-165.26,0.00036787,2]
[309790089,1704127831916,-449.16490529,0.00036813,2]
[309790090,1704127831928,-1394.37509471,0.00036813,2]
[309790091,1704127831937,-544.0,0.00036813,2]
[309790092,1704127831947,-206.0,0.00036817,13]
[309790093,1704127831956,-1968.28735443,0.00036844,2]
[309790094,1704127831969,-211.29264557,0.00036844,2]
[309790095,1704127831979,-151.73,0.00037057,2]
[309790096,1704127831988,-165.26,0.00037104,2]
[309790097,1704127831998,-165.39,0.00037225,2]
[309790099,1704127832008,-138.24687242,0.00037275,2]
[309790101,1704127832020,-784.17302211,0.00037275,2]
[309790138,1704127837934,-948.984565,0.00037275,2]
[309790139,1704127837945,-3481.88310599,0.00037275,2]
[309790140,1704127837955,-342.99828672,0.00037285,2]
[309790141,1704127837967,-621.03171328,0.00037285,2]
[309790142,1704127837976,-313.04,0.00037288,2]
[309790143,1704127837986,-158.98,0.0003741,2]
[309790144,1704127837996,-165.26,0.00037421,2]
[309790145,1704127838005,-15.19948672,0.00037738,2]
[309790146,1704127838017,-150.06051328,0.00037738,2]
[309790147,1704127838027,-1129.2281,0.00037807,2]
[309790148,1704127838037,-2411.99122477,0.000379,3]
[309790149,1704127838046,-822.5451,0.000379,2]
[309790150,1704127838056,-2836.08407771,0.00037907,2]
[309790151,1704127838087,-7108.95303073,0.00037907,2]
[309790152,1704127838097,-2734.03345633,0.00037907,2]
[309790153,1704127838106,-1000.0,0.00037938,2]
[309790154,1704127838116,-2500.0,0.00037938,2]
[309790155,1704127838125,-15647.18393446,0.00038,8]
[309790156,1704127838137,-84352.81606554,0.00038,8]
[309790158,1704127838147,-164.81,0.00038007,2]
[309790160,1704127838157,-2734.03345628,0.00038011,2]
[309790162,1704127838166,-1234.0,0.00038038,2]
[309790163,1704127838176,-2889.0,0.00038038,2]
[309790164,1704127838185,-2263.0,0.00038038,2]
[309790165,1704127838195,-165.26,0.00038054,2]
[309790167,1704127838204,-2734.03345628,0.00038116,2]
[309790168,1704127838213,-151.73,0.00038196,2]
[309790169,1704127838222,-2734.03345628,0.0003822,2]
[309790170,1704127838232,-736.8989,0.00038263,2]
[309790171,1704127838241,-313.04,0.00038266,2]
[309790172,1704127838250,-2734.03345628,0.00038324,2]
[309790174,1704127838260,-158.98,0.00038346,2]
[309790175,1704127838269,-1785.76,0.00038363,5]
[309790176,1704127838278,-165.26,0.00038371,2]
[309790177,1704127838287,-4001.0,0.000384,2]
[309790178,1704127838297,-2734.03345628,0.00038429,2]
[309790179,1704127838307,-277.59,0.00038491,2]
[309790180,1704127838317,-278.12972048,0.00038498,4]
[309790181,1704127838326,-155.0,0.00038498,5]
[309790182,1704127838336,-2411.99122478,0.000385,3]
[309790183,1704127838346,-340.0089,0.000385,2]
[309790184,1704127838355,-638.0874,0.000385,2]
[309790185,1704127838365,-675.1928,0.000385,2]
[309790186,1704127838375,-48192.8205,0.000385,2]
[309790187,1704127838385,-4878.0269,0.000385,2]
[309790188,1704127838395,-206.89666977,0.000385,10]
[309790189,1704127838404,-1112.20748059,0.000385,8]
[309790190,1704127838413,-2734.03345628,0.00038533,2]
[309790191,1704127838423,-175.64,0.00038571,2]
[309790192,1704127838433,-338.5192,0.000386,2]
[309790193,1704127838443,-969.0294972,0.000386,2]
[309790194,1704127840109,-31378.42429494,0.000386,2]
[309790195,1704127840162,-5920.37385265,0.000386,2]
[309790196,1704127840218,-1172.0949936,0.000386,2]
[309790197,1704127840230,-821.90744022,0.000386,2]
[309790198,1704127840241,-688.57565016,0.000386,2]
[309790199,1704127840273,-1365.49042449,0.000386,2]
[309790200,1704127840962,-251.3296554,0.000386,2]
[309790201,1704127841071,-1479.86610859,0.000386,2]
[309790233,1704127842586,-0.00143909,0.00037276,2]
[309790234,1704127842598,-1815.01856091,0.00037276,2]
[309790235,1704127842607,-763.48658754,0.000386,2]
[309790236,1704127842619,-6772.036557,0.000386,2]
[309790237,1704127842634,-400.0,0.000386,2]
[309790238,1704127842644,-5995.51689906,0.000386,2]
[309790239,1704127842733,-3423.35942307,0.000386,2]
[309790240,1704127842744,-4903.27,0.000386,2]
[309790241,1704127842756,-1179.81069305,0.000386,2]
[309790242,1704127842845,-663.22,0.000386,2]
[309790243,1704127842901,-413.26,0.000386,2]
[309790244,1704127842912,-622.56932309,0.000386,2]
[309790263,1704127845872,-599.27979208,0.00038406,2]
[309790351,1704128048667,499.999999,0.0002,2]
[309790352,1704128065184,13434.08488636,0.00022,2]
[309790353,1704128068056,6566.45285907,0.00039198,120]
[309790373,1704129031759,-155.0,0.00024946,2]
[309790374,1704129031769,-155.0,0.00024947,2]
[309790375,1704129031779,-301.15099865,0.00024948,2]
[309790376,1704129031791,-74.32609973,0.00024948,2]
[309790377,1704129031801,-303.39181075,0.0002499,2]
[309790378,1704129031813,-193.91595823,0.0002499,2]
[309790379,1704129031823,-267.94181947,0.00028805,2]
[309790380,1704129031832,-251.87,0.00032334,2]
[309790381,1704129031842,-137.6115023,0.00033932,2]
[309790382,1704129031866,-587.166525,0.00033932,2]
[309790383,1704129031878,-1029.50152801,0.00033932,2]
[309790384,1704129031891,-675.59126504,0.00033932,2]
[309790385,1704129031959,-888.62542816,0.00033932,2]
[309790386,1704129031984,-150.45584549,0.00033932,2]
[309790387,1704129031995,-803.35,0.00033942,2]
[309790388,1704129032004,-23900.0,0.00033976,2]
[309790389,1704129032014,-1000.0,0.00034007,4]
[309790390,1704129032023,-250.0,0.00034008,2]
[309790391,1704129032033,-195.08,0.00034042,2]
[309790405,1704129032187,-200.0,0.00034144,2]
[309790407,1704129032197,-468.2901,0.00034152,2]
[309790410,1704129032207,-150.0,0.00034276,2]
[309790412,1704129032216,-163.23,0.00034346,15]
[309790415,1704129032225,-157.19,0.00034368,2]
[309790418,1704129032234,-150.0,0.000344,2]
[309790421,1704129032243,-500.0,0.00034415,2]
[309790424,1704129032252,-251.87,0.00034598,2]
[309790427,1704129032262,-350.26,0.000346,2]
[309790430,1704129032271,-260.74,0.00034602,2]
[309790432,1704129032280,-729.63,0.0003469,2]
[309790435,1704129032290,-200.0,0.0003484,2]
[309790438,1704129032300,-210.76,0.00034877,2]
[309790442,1704129032310,-1976.07,0.00034877,2]
[309790445,1704129032320,-232.404494,0.00034948,2]
[309790447,1704129032329,-176.08,0.0003514,2]
[309790449,1704129032338,-357.55300157,0.00035278,4]
[309790450,1704129032347,-2858.48,0.00035307,2]
[309790452,1704129032356,-21404.41855328,0.000354,2]
[309790455,1704129032369,-609.86344662,0.000354,2]
[309790457,1704129032380,-2907.1056001,0.000354,2]
[309790459,1704129032390,-926.32105158,0.0003549,2]
[309790490,1704129037949,-375.47709838,0.00024945,2]
[309790491,1704129037963,-378.02921813,0.0003549,2]
[309790492,1704129037979,-410.0,0.0003549,2]
[309790493,1704129038094,-491.17492252,0.0003549,2]
[309790494,1704129038109,-437.70943335,0.0003549,2]
[309790495,1704129038201,-2042.09753743,0.0003549,2]
[309790496,1704129038215,-227.71051894,0.00035499,4]
[309790497,1704129038228,-3421.0577,0.000355,2]
[309790498,1704129038238,-907.9,0.000355,2]
[309790499,1704129038251,-170.3627047,0.000355,2]
[309790523,1704129040369,-785.69904767,0.000355,2]
[309790524,1704129040387,-38208.30073276,0.000355,2]
[309790525,1704129040403,-15719.86268494,0.000355,2]
[309790526,1704129040423,-504.8344828,0.000355,2]
[309790527,1704129040439,-946.88287351,0.000355,2]
[309790528,1704129040453,-596.95636254,0.000355,2]
[309790529,1704129040467,-1810.68367416,0.000355,2]
[309790530,1704129041156,-1500.0,0.000355,2]
[309790531,1704129041170,-342.1570288,0.000355,2]
[309790532,1704129041184,-922.15853112,0.000355,2]
[309790533,1704129041199,-377.59659757,0.000355,2]
[309790534,1704129041213,-417.44101052,0.000355,2]
[309790535,1704129041226,-276.53404312,0.000355,2]
[309790536,1704129041244,-10563.76676252,0.000355,2]
[309790537,1704129041258,-1473.084288,0.000355,2]
[309790538,1704129041271,-500.0,0.000355,2]
[309790539,1704129041286,-587.57124826,0.000355,2]
[309790540,1704129041300,-681.91,0.000355,2]
[309790541,1704129041320,-2842.1051343,0.000355,2]
[309790542,1704129041334,-641.74232586,0.000355,2]
[309790569,1704129042813,-12670.77836685,0.000355,2]
[309790570,1704129042825,-225.27666242,0.00035516,9]
[309790571,1704129042836,-431.43277706,0.00035516,2]
[309790572,1704129042847,-260.74,0.00035581,2]
[309790573,1704129042858,-167.0,0.00035584,2]
[309790574,1704129042869,-171.36287435,0.0003559,2]
[309790575,1704129042881,-1000.0,0.00035599,2]
[309790576,1704129042891,-306692.26771346,0.000356,7]
[309790577,1704129042905,-509126.07210414,0.000356,7]
[309790578,1704129042916,-151.87,0.00035616,2]
[309790579,1704129042928,-1000.0,0.00035798,2]
[309790580,1704129042938,-1822.0,0.000358,3]
[309790581,1704129042950,-208.98,0.00035873,2]
[309790582,1704129042961,-400.0,0.000359,13]
[309790583,1704129042973,-18199.0,0.000359,3]
[309790584,1704129042984,-8950.53339765,0.00036089,2]
[309790585,1704129042995,-158.99797593,0.00036294,7]
[309790586,1704129043006,-155.0,0.00036472,2]
[309790587,1704129043017,-260.74,0.00036559,2]
[309790588,1704129043028,-178.55,0.00036664,2]
[309790589,1704129043039,-225.27666241,0.00036684,11]
[309790590,1704129043050,-251.87,0.00036862,2]
[309790591,1704129043061,-151.87,0.00036888,2]
[309790592,1704129043072,-3000.00000006,0.000369,2]
[309790593,1704129043083,-8950.53339758,0.00036948,2]
[309790594,1704129043094,-4614.25840912,0.00037,2]
[309790595,1704129043106,-167.0,0.00037527,2]
[309790596,1704129043117,-260.74,0.00037538,2]
[309790598,1704129043129,-153.84,0.00037619,2]
[309790600,1704129043141,-208.02634532,0.00037842,2]
[309790601,1704129043153,-3925.48265765,0.00037851,11]
[309790602,1704129043165,-225.27666241,0.00037851,12]
[309790603,1704129043177,-1000.0,0.000379,2]
[309790604,1704129043190,-800.0,0.000379,13]
[309790605,1704129043202,-118251.72351092,0.000379,3]
[309790606,1704129043230,-19402.43241138,0.000379,3]
[309790607,1704129043248,-1201.96550705,0.000379,3]
[309790608,1704129043263,-463.60535998,0.000379,3]
[309790609,1704129043280,-3257.73304214,0.000379,3]
[309790610,1704129043296,-4623.64969463,0.000379,3]
[309790631,1704129045827,-3062.42651471,0.000379,3]
[309790633,1704129045840,-247808.62640219,0.000379,3]
[309790635,1704129045850,-207.74,0.00037951,2]
[309790637,1704129045859,-79614.4324885,0.0003799,3]
[309790638,1704129045870,-18576.87143153,0.00038,2]
[309790639,1704129045880,-13147.17098385,0.00038,2]
[309790640,1704129045891,-528.26133382,0.00038,2]
[309790641,1704129045903,-532.98005436,0.00038,2]
[309790642,1704129045931,-1023.7,0.00038,2]
[309790643,1704129045943,-431.60659171,0.00038,2]
[309790645,1704129046338,-30055.72748054,0.00038,2]
[309790646,1704129046349,-16214.61701175,0.00038,2]
[309790650,1704129763483,-155.0,0.0002452,2]
[309790651,1704129763506,-155.0,0.00024521,2]
[309790652,1704129763532,-1028.0,0.00024521,2]
[309790653,1704129763554,-155.0,0.00024522,2]
[309790654,1704129763579,-3316.86540737,0.00024522,2]
[309790655,1704129763600,-155.0,0.00024523,2]
[309790656,1704129763623,-695.17387652,0.00024523,2]
[309790657,1704129763647,-569.858,0.00024525,2]
[309790658,1704129763671,-160.66594081,0.00024527,2]
[309790659,1704129766366,156.5367753,0.00024519,2]
[309790660,1704129855030,510.79000225,0.00022067,2]
[309790661,1704129871040,266.12159117,0.00022067,2]
[309790662,1704129889100,266.12159117,0.00022067,2]
[309790663,1704129902537,359.94121681,0.00022067,2]
[309790664,1704129905205,282.25366019,0.00022067,2]
[309790665,1704129905379,283.29816887,0.00022067,2]
[309790666,1704129905776,854.13879068,0.00022067,2]
[309790667,1704129906487,6063.54728152,0.00022067,2]
[309790668,1704129906990,155.0,0.00022067,2]
[309790669,1704129907069,266.12159117,0.0001986,2]
[309790670,1704129907343,500.0,0.00022067,2]
[309790671,1704129907381,987.31885076,0.00022067,2]
[309790672,1704129908307,542.46432071,0.00022067,2]
[309790673,1704129908902,1019.77203311,0.00022067,2]
[309790674,1704129908940,531.55305458,0.00022067,2]
[309790675,1704129908999,291.16755468,0.00022067,2]
[309790676,1704129909105,519.78453749,0.00022067,2]
[309790677,1704129910042,217.48153882,0.00022067,2]
[309790678,1704129910095,1166.68760598,0.00022067,2]
[309790679,1704129910938,400.99457651,0.00021405,2]
[309790680,1704129911161,7401.10783465,0.00022067,2]
[309790681,1704129911781,155.0,0.00022067,2]
[309790682,1704129912262,18906.78871681,0.00022067,2]
[309790683,1704129913432,226.65817321,0.00022067,2]
[309790684,1704129920492,6063.54728152,0.00022067,2]
[309790685,1704129921199,282.25366019,0.00022067,2]
[309790686,1704129921381,987.31885076,0.00022067,2]
[309790687,1704129921954,492.76751639,0.00022067,2]
[309790688,1704129921988,361.37127429,0.00022067,2]
[309790689,1704129922928,526.98990054,0.00022067,2]
[309790690,1704129922960,155.0,0.00022067,2]
[309790691,1704129923022,291.16755468,0.00022067,2]
[309790692,1704129923115,519.78453749,0.00022067,2]
[309790693,1704129923339,500.0,0.00022067,2]
[309790694,1704129924903,1019.77203311,0.00022067,2]
[309790695,1704129924938,400.99457651,0.00021405,2]
[309790696,1704129925169,7401.10783465,0.00022067,2]
[309790697,1704129925385,283.29816887,0.00022067,2]
[309790698,1704129925711,155.0,0.00022067,2]
[309790699,1704129926163,607.84424272,0.00022067,2]
[309790700,1704129926540,312.89687242,0.00022067,2]
[309790701,1704129927054,266.12159117,0.0001986,2]
[309790702,1704129927434,226.65817321,0.00022067,2]
[309790703,1704129930354,18906.78871681,0.00022067,2]
[309790704,1704129932245,217.48153882,0.00022067,2]
[309790705,1704129932278,542.46432071,0.00022067,2]
[309790706,1704129937222,282.25366019,0.00022067,2]
[309790707,1704129937400,987.31885076,0.00022067,2]
[309790708,1704129939079,291.16755468,0.00022067,2]
[309790709,1704129940498,6063.54728152,0.00022067,2]
[309790710,1704129940975,155.0,0.00022067,2]
[309790711,1704129941109,519.78453749,0.00022067,2]
[309790712,1704129941172,7401.10783465,0.00022067,2]
[309790713,1704129941792,335.70629224,0.00022067,2]
[309790714,1704129942946,1019.77203311,0.00022067,2]
[309790715,1704129943503,500.0,0.00022067,2]
[309790716,1704129944933,400.99457651,0.00021405,2]
[309790717,1704129945059,266.12159117,0.0001986,2]
[309790718,1704129945392,283.29816887,0.00022067,2]
[309790719,1704129945455,226.65817321,0.00022067,2]
[309790720,1704129945715,199.91722848,0.00022067,2]
[309790721,1704129946102,607.84424272,0.00022067,2]
[309790722,1704129948275,18906.78871681,0.00022067,2]
[309790723,1704129950276,542.46432071,0.00022067,2]
[309790724,1704129952030,217.48153882,0.00022067,2]
[309790725,1704129953211,282.25366019,0.00022067,2]
[309790726,1704129955413,987.31885076,0.00022067,2]
[309790727,1704129956493,3807.92857022,0.00022067,2]
[309790728,1704129957114,519.78453749,0.00022067,2]
[309790729,1704129959024,291.16755468,0.00022067,2]
[309790730,1704129960964,269.41490813,0.00022067,2]
[309790731,1704129961450,226.65817321,0.00022067,2]
[309790732,1704129962100,607.84424272,0.00022067,2]
[309790733,1704129963266,400.99457651,0.00021405,2]
[309790734,1704129963312,7401.10783465,0.00022067,2]
[309790735,1704129963389,283.29816887,0.00022067,2]
[309790736,1704129964900,1019.77203311,0.00022067,2]
[309790737,1704129966280,18906.78871681,0.00022067,2]
[309790738,1704129967062,266.12159117,0.0001986,2]
[309790739,1704129969385,982.2978965,0.00022067,2]
[309790740,1704129970274,542.46432071,0.00022067,2]
[309790741,1704129971223,282.25366019,0.00022067,2]
[309790742,1704129974612,1490.37227927,0.00022067,2]
[309790743,1704129975108,519.78453749,0.00022067,2]
[309790744,1704129976029,217.48153882,0.00022067,2]
[309790745,1704129977129,1490.37227927,0.00022067,2]
[309790746,1704129977454,182.33264682,0.00022067,2]
[309790747,1704129978935,526.50933735,0.00021405,2]
[309790748,1704129979033,339.67953458,0.00022067,2]
[309790749,1704129980102,607.84424272,0.00022067,2]
[309790750,1704129981392,283.29816887,0.00022067,2]
[309790751,1704129984904,1019.77203311,0.00022067,2]
[309790752,1704129985066,266.12159117,0.0001986,2]
[309790753,1704129985183,7401.10783465,0.00022067,2]
[309790754,1704129986279,7742.81219588,0.00022067,2]
[309790755,1704129991231,282.25366019,0.00022067,2]
[309790756,1704129992033,217.48153882,0.00022067,2]
[309790757,1704129992282,542.46432071,0.00022067,2]
[309790758,1704129993354,519.78453749,0.00022067,2]
[309790759,1704129997419,283.29816887,0.00022067,2]
[309790760,1704129998750,255.8609258,0.00039249,30]
[309790761,1704130001185,7401.10783465,0.00022067,2]
[309790762,1704130002104,607.84424272,0.00022067,2]
[309790763,1704130004906,1019.77203311,0.00022067,2]
[309790764,1704130009058,266.12159117,0.0001986,2]
[309790765,1704130013223,265.66620992,0.00022067,2]
[309790766,1704130014045,217.48153882,0.00022067,2]
[309790767,1704130014297,202.27742044,0.00022067,2]
[309790768,1704130015111,546.59647426,0.00022067,2]
[309790769,1704130015144,1490.37227927,0.00022067,2]
[309790770,1704130017417,283.29816887,0.00022067,2]
[309790771,1704130019180,7401.10783465,0.00022067,2]
[309790772,1704130020108,607.84424272,0.00022067,2]
[309790773,1704130025271,266.12159117,0.0001986,2]
[309790774,1704130026913,490.6516217,0.00022067,2]
[309790775,1704130032048,367.33916012,0.00022067,2]
[309790776,1704130035194,2346.84211303,0.00022067,2]
[309790777,1704130035616,268.00598182,0.00022067,2]
[309790778,1704130038135,607.84424272,0.00022067,2]
[309790779,1704130047079,310.5481657,0.0001986,2]
[309790780,1704130049138,1490.37227927,0.00022067,2]
[309790781,1704130056193,607.84424272,0.00022067,2]
[309790782,1704130067339,1490.37227927,0.00022067,2]
[309790783,1704130080122,607.84424272,0.00022067,2]
[309790784,1704130087143,1490.37227927,0.00022067,2]
[309790785,1704130102125,607.84424272,0.00022067,2]
[309790786,1704130107144,1490.37227927,0.00022067,2]
[309790787,1704130126132,519.39876423,0.00022067,2]
[309790788,1704130127154,1490.37227927,0.00022067,2]
[309790789,1704130149255,963.37560984,0.00022067,2]
[309790790,1704130150725,-390.9851402,0.00024518,2]
[309790821,1704130231964,-155.0,0.00024517,2]
[309790823,1704130231973,-155.0,0.00024517,2]
[309790826,1704130231983,-160.94352157,0.00024518,2]
[309790828,1704130231995,-143.24521475,0.00024518,2]
[309790830,1704130232004,-155.0,0.00024519,2]
[309790831,1704130232014,-300.0,0.00024851,2]
[309790833,1704130232023,-1210.0446,0.00031492,2]
[309790834,1704130232033,-3191.71018525,0.00031589,4]